Workbook

Sheet Start
AD1: 0 | AE1: Start
H2: Modul 03 : BWL - Grundbegriffe | AD2: =AD1+1 -> 1 | AE2: 01_Gruendungsphasen
AD3: =AD2+1 -> 2 | AE3: 02_Geschaeftsidee
M4: Zu dieser Datei: | AD4: 3 | AE4: 03_Entscheidungen
M5: Für die Lösung vieler betriebswirtschaftlicher Entscheidungsproblem ist es angeraten, den | AD5: 4 | AE5: 04_Standort
M6: Teilkostenansatz zu wählen, indem strickt zwischen beschäftigungsunabhängigen fixen Kosten | AD6: 5 | AE6: 05_Rechtsform
M7: und beschäftigungsabhängigen variablen Kosten unterschieden wird. | AD7: 6 | AE7: 06_Startfinanzierung
M8: Auf diesem Ansatz basiert die Deckungsbeitragsrechnung mit ihren einzelnen Berechnungsformeln. | AD8: 7 | AE8: 07_Businessplan
AD9: 8 | AE9: 08_BWL_Grundbegriffe
M10: In diesem Wissenstest werden Aufgaben zur Ermittlung von Dckungsbeiträgen sowie zur Ermittlung | AD10: 9 | AE10: 09_Entscheidungstest 1
M11: von Gewinnschwellen (Break-even-Analyse) zur Bearbeitung angeboten.
M12: Die zugehörigen Musterlösungen können - nach Bearbeitung der Aufgaben - eingeblendet
M13: werden.

Sheet DBR_01_A
C3: Wissenstest Deckungsbeitragsrechnung
C5: Daten:
C6: Von einem Werk der Fa. MaBau GmbH liegen folgende Daten vor:
C8: Position | D8: Produkt A | E8: Produkt B | F8: Produkt C
C9: Verkaufspreis-netto [EUR/ME] | D9: 38.5 | E9: 57.4 | F9: 107.3
C10: Absatzmenge [ME] | D10: 7800 | E10: 3400 | F10: 3200
C11: variable Herstellungskosten [EUR/ME] | D11: 16.2 | E11: 13.91 | F11: 71.3
C12: variable Vertriebskosten [EUR/ME] | D12: 1.6 | E12: 6.3 | F12: 7
C13: Erzeugnisfixe Kosten [EUR] | D13: 4800 | E13: 3500 | F13: 4900
C14: Unternehmensfixe Kosten [EUR] | D14: 267506
C16: Aufgabe 1:
C17: Ermitteln Sie aus diesen Angaben zunächst das Betriebsergebnis BE!
C19: Position | D19: Produkt A | E19: Produkt B | F19: Produkt C | G19: Gesamt
C20: Umsatzerlöse [EUR]
C21: ./. variable Kosten [EUR]
C22: = Deckungsbeitrag I [EUR]
C23: ./. erzeugnisfixe Kosten [EUR]
C24: = Deckungsbeitrag II [EUR]
C25: ./. unternehmensfixe Kosten [EUR]
C26: = Betriebsergebnis BE [EUR]
C28: Aufgabe 2:
C29: Ermitteln Sie dasjenige Produkt, dessen Absatzmenge mit dem Ziel der Deckungsbeitragsmaximierung
C30: durch konzentrierte Marketing-Maßnahmen um | E30: 5 | F30: % gestieigert werden soll.
C31: Welcher DB II [EUR] könnte dann erreicht werden?
C33: Position | D33: Produkt A | E33: Produkt B | F33: Produkt C
C37: Neue Rechnung:
C38: Position | D38: Produkt A | E38: Produkt B | F38: Produkt C | G38: Gesamt
C39: Umsatzerlöse [EUR]
C40: ./. variable Kosten [EUR]
C41: = Deckungsbeitrag I [EUR]
C42: ./. erzeugnisfixe Kosten [EUR]
C43: = Deckungsbeitrag II [EUR]
C44: Steigerung des DB II um … [EUR]
C46: Aufgabe 3:
C48: Ermitteln Sie die Deckungsbeitragsrate des Umsatzes (DBU [%]) mit den Daten aus Aufgabe 1 und 2!
F49: Aufg. 1 | G49: Aufg. 2
C50: Deckungsbeitragsrate DBU [%] = | E50: =

Sheet DBR_02_A
C3: Wissenstest Deckungsbeitragsrechnung
C5: Fortsetzung
C7: Aufgabe 4:
C9: Ermitteln Sie zunächst rechnerisch mit den Daten aus Aufgabe 1 die umsatzbezogene Gewinnschwelle,
C10: bezogen auf die gesamten Fixkosten und auf das Betriebsergebnis!
C13: Gewinnschwelle U0 = | F13: = | H13: = | J13: [EUR]
C16: Ermitteln Sie ferner den durchschnittlichen Anteil a der variablen Kosten an den Umsatzerlösen!
C18: a = | F18: = | H18: = | J18: [%]
C21: Aufgabe 5:
C23: Erstellen Sie nunmehr die grafische Lösung zur Kennzeichnung der umsatzbezogenen Gewinschwelle!
C24: Erarbeiten Sie herfür zunächst die Daten-Tabelle!
C26: Umsatz U | D26: Erlöse E | E26: Var. Kosten Kv | F26: Fixkosten Kf | G26: Gesamtkosten K | H26: Gewinn G | I26: Break-even-Linie
C38: Diagramm:

Sheet DBR_01_L (hidden)
C3: Wissenstest Deckungsbeitragsrechnung
C5: Daten:
C6: Von einem Werk der Fa. MaBau GmbH liegen folgende Daten vor:
C8: Position | D8: Produkt A | E8: Produkt B | F8: Produkt C
C9: Verkaufspreis-netto [EUR/ME] | D9: =DBR_01_A!D9 -> 38.5 | E9: =DBR_01_A!E9 -> 57.4 | F9: =DBR_01_A!F9 -> 107.3
C10: Absatzmenge [ME] | D10: =DBR_01_A!D10 -> 7800 | E10: =DBR_01_A!E10 -> 3400 | F10: =DBR_01_A!F10 -> 3200
C11: variable Herstellungskosten [EUR/ME] | D11: =DBR_01_A!D11 -> 16.2 | E11: =DBR_01_A!E11 -> 13.91 | F11: =DBR_01_A!F11 -> 71.3
C12: variable Vertriebskosten [EUR/ME] | D12: =DBR_01_A!D12 -> 1.6 | E12: =DBR_01_A!E12 -> 6.3 | F12: =DBR_01_A!F12 -> 7
C13: Erzeugnisfixe Kosten [EUR] | D13: =DBR_01_A!D13 -> 4800 | E13: =DBR_01_A!E13 -> 3500 | F13: =DBR_01_A!F13 -> 4900
C14: Unternehmensfixe Kosten [EUR] | D14: =DBR_01_A!D14 -> 267506
C16: Musterlösung zu Aufgabe 1:
C17: Ermittlung des Betriebsergebnisses BE
C19: Position | D19: Produkt A | E19: Produkt B | F19: Produkt C | G19: Gesamt
C20: Umsatzerlöse [EUR] | D20: =D9*D10 -> 300300 | E20: =E9*E10 -> 195160 | F20: =F9*F10 -> 343360 | G20: =SUM(D20:F20) -> 838820
C21: ./. variable Kosten [EUR] | D21: =(D11+D12)*D10 -> 138840 | E21: =(E11+E12)*E10 -> 68714 | F21: 250560 | G21: =SUM(D21:F21) -> 458114
C22: = Deckungsbeitrag I [EUR] | D22: =D20-D21 -> 161460 | E22: =E20-E21 -> 126446 | F22: =F20-F21 -> 92800 | G22: =SUM(D22:F22) -> 380706
C23: ./. erzeugnisfixe Kosten [EUR] | D23: =D13 -> 4800 | E23: =E13 -> 3500 | F23: =F13 -> 4900 | G23: =SUM(D23:F23) -> 13200
C24: = Deckungsbeitrag II [EUR] | D24: =D22-D23 -> 156660 | E24: =E22-E23 -> 122946 | F24: 87900 | G24: =G22-G23 -> 367506
C25: ./. unternehmensfixe Kosten [EUR] | G25: =DBR_01_A!D14 -> 267506
C26: = Betriebsergebnis BE [EUR] | G26: =G24-G25 -> 100000
C28: Aufgabe 2:
C29: Ermitteln Sie dasjenige Produkt, dessen Absatzmenge mit dem Ziel der Deckungsbeitragsmaximierung
C30: durch konzentrierte Marketing-Maßnahmen um | E30: 5 | F30: % gestieigert werden soll.
C31: Welcher DB II [EUR] könnte dann erreicht werden?
C33: Position | D33: Produkt A | E33: Produkt B | F33: Produkt C
C34: Deckungsbeitrag db [EUR/ME] | D34: =D9-D11-D12 -> 20.7 | E34: =E9-E11-E12 -> 37.19 | F34: 29
C35: Rangfolge nach DB I | D35: =RANK(D34,$D$34:$F$34) -> 3 | E35: =RANK(E34,$D$34:$F$34) -> 1 | F35: 2
C37: Neue Rechnung:
C38: Position | D38: Produkt A | E38: Produkt B | F38: Produkt C | G38: Gesamt
C39: Umsatzerlöse [EUR] | D39: =D9*D10 -> 300300 | E39: =E9*E10*(1+E30/100) -> 204918 | F39: =F9*F10 -> 343360 | G39: =SUM(D39:F39) -> 848578
C40: ./. variable Kosten [EUR] | D40: =(D11+D12)*D10 -> 138840 | E40: =(E11+E12)*E10*(1+E30/100) -> 72149.7 | F40: =(F11+F12)*F10 -> 250560 | G40: =SUM(D40:F40) -> 461549.7
C41: = Deckungsbeitrag I [EUR] | D41: =D39-D40 -> 161460 | E41: =E39-E40 -> 132768.3 | F41: =F39-F40 -> 92800 | G41: =SUM(D41:F41) -> 387028.3
C42: ./. erzeugnisfixe Kosten [EUR] | D42: =D13 -> 4800 | E42: =E13 -> 3500 | F42: =F13 -> 4900 | G42: =SUM(D42:F42) -> 13200
C43: = Deckungsbeitrag II [EUR] | D43: =D41-D42 -> 156660 | E43: =E41-E42 -> 129268.3 | F43: =F41-F42 -> 87900 | G43: =G41-G42 -> 373828.3
C44: Steigerung des DB II um … [EUR] | G44: =G43-G24 -> 6322.3
C46: Aufgabe 3:
C48: Ermitteln Sie die Deckungsbeitragsrate des Umsatzes (DBU [%]) mit den Daten aus Aufgabe 1 und 2!
D49: DB II [EUR] * 100 | F49: Aufg. 1 | G49: Aufg. 2
C50: Deckungsbeitragsrate DBU [%] = | E50: = | F50: =G24*100/G20 -> 43.81226008 | G50: =G43*100/G39 -> 44.05349891
D51: Umsatzerlöse [EUR]

Sheet DBR_02_L (hidden)
C3: Wissenstest Deckungsbeitragsrechnung
C5: Fortsetzung
C7: Aufgabe 4:
C9: Ermitteln Sie zunächst rechnerisch mit den Daten aus Aufgabe 1 die umsatzbezogene Gewinnschwelle,
C10: bezogen auf die gesamten Fixkosten und auf das Betriebsergebnis!
D12: Fixkosten [EUR] * 100 [%] | G12: =(DBR_01_L!G23+DBR_01_L!G25)*100 -> 28070600
C13: Gewinnschwelle U0 = | F13: = | H13: = | I13: =ROUND(G12/G14,0) -> 640702 | J13: [EUR]
D14: DBU [%] | G14: =DBR_01_L!F50 -> 43.81226008
C16: Ermitteln Sie ferner den durchschnittlichen Anteil a der variablen Kosten an den Umsatzerlösen!
D17: var. Kosten Kv [EUR] * 100 [%] | G17: =DBR_01_L!G21*100 -> 45811400
C18: a = | F18: = | H18: = | I18: =ROUND(G17/G19,1) -> 54.6 | J18: [%]
D19: Umsatzerlöse U [EUR] | G19: =DBR_01_L!G20 -> 838820
C21: Aufgabe 5:
C23: Erstellen Sie nunmehr die grafische Lösung zur Kennzeichnung der umsatzbezogenen Gewinschwelle!
C24: Erarbeiten Sie herfür zunächst die Daten-Tabelle!
C26: Umsatz U | D26: Erlöse E | E26: Var. Kosten Kv | F26: Fixkosten Kf | G26: Gesamtkosten K | H26: Gewinn G | I26: Break-even-Linie
C27: 0 | D27: =C27 -> 0 | E27: =C27*a/100 -> 0 | F27: =DBR_01_L!$G$23+DBR_01_L!$G$25 -> 280706 | G27: =E27+F27 -> 280706 | H27: =D27-G27 -> -280706 | I27: =$I$13 -> 640702
C28: =C27+100000 -> 100000 | D28: =C28 -> 100000 | E28: 54600 | F28: =DBR_01_L!$G$23+DBR_01_L!$G$25 -> 280706 | G28: =E28+F28 -> 335306 | H28: =D28-G28 -> -235306 | I28: =$I$13 -> 640702
C29: =C28+100000 -> 200000 | D29: 200000 | E29: 109200 | F29: =DBR_01_L!$G$23+DBR_01_L!$G$25 -> 280706 | G29: 389906 | H29: -189906 | I29: 640702
C30: 300000 | D30: 300000 | E30: 163800 | F30: =DBR_01_L!$G$23+DBR_01_L!$G$25 -> 280706 | G30: 444506 | H30: -144506 | I30: 640702
C31: 400000 | D31: 400000 | E31: 218400 | F31: =DBR_01_L!$G$23+DBR_01_L!$G$25 -> 280706 | G31: 499106 | H31: -99106 | I31: 640702
C32: 500000 | D32: 500000 | E32: 273000 | F32: =DBR_01_L!$G$23+DBR_01_L!$G$25 -> 280706 | G32: 553706 | H32: -53706 | I32: 640702
C33: 600000 | D33: 600000 | E33: 327600 | F33: =DBR_01_L!$G$23+DBR_01_L!$G$25 -> 280706 | G33: 608306 | H33: -8306 | I33: 640702
C34: =C33+50000 -> 650000 | D34: 650000 | E34: =D34*a/100 -> 354900 | F34: =DBR_01_L!$G$23+DBR_01_L!$G$25 -> 280706 | G34: 635606 | H34: 14394 | I34: 640702
C35: =C33+100000 -> 700000 | D35: 700000 | E35: =C35*a/100 -> 382200 | F35: =DBR_01_L!$G$23+DBR_01_L!$G$25 -> 280706 | G35: 662906 | H35: 37094 | I35: 640702
C36: 800000 | D36: 800000 | E36: =C36*a/100 -> 436800 | F36: =DBR_01_L!$G$23+DBR_01_L!$G$25 -> 280706 | G36: 717506 | H36: 82494 | I36: 640702
C38: Diagramm:
